bitfinex/quotes_SOLUSD_20250514
["timestamp","ask_amount","ask_price","bid_price","bid_amount"]
[1747230926653,28.922437,178.06,178.02,26.72]
[1747230926853,178.24339745,178.08,178.02,26.72]
[1747230927077,28.922437,178.04,177.99,44.64964886]
[1747230927251,28.922437,178.0,177.98,7.8501]
[1747230927450,28.922437,178.01,177.98,7.8501]
[1747230927852,28.922437,178.02,177.98,7.8501]
[1747230928355,28.922437,178.02,177.98,34.5501]
[1747230928356,34.53982955,178.02,177.98,34.5501]
[1747230928595,28.922437,178.01,177.98,34.5501]
[1747230928888,34.53982955,178.02,177.98,26.7]
[1747230929083,28.922437,178.02,177.98,26.7]
[1747230929262,129.6668,178.03,177.99,18.64964886]
[1747230929988,129.6668,178.07,178.02,18.64964886]
[1747230930292,135.28107701,178.12,178.04,18.64964886]
[1747230930464,135.28105375,178.12,178.04,44.64964886]
[1747230930673,34.25782731,178.19,178.03,13.78318156]
[1747230930674,129.6668,178.17,178.08,18.64964886]
[1747230930888,28.922437,178.18,178.1,18.64964886]
[1747230931264,28.922437,178.17,178.1,18.64964886]
[1747230931574,28.922437,178.17,178.11,0.39855073]
[1747230931774,5.89536567,178.22,178.11,0.39855073]
[1747230931775,19.63894097,178.22,178.11,0.39855073]
[1747230931994,5.61104253,178.22,178.14,25.22384886]
[1747230932295,5.61017395,178.25,178.16,44.64964886]
[1747230932495,5.61017395,178.25,178.17,53.52]
[1747230932660,34.53261095,178.25,178.17,53.52]
[1747230932977,28.922437,178.24,178.18,0.39855073]
[1747230933299,28.922437,178.22,178.18,0.39855073]
[1747230933500,28.922437,178.24,178.18,0.39855073]
[1747230933662,5.60946878,178.27,178.18,19.04819959]
[1747230933862,28.922437,178.26,178.18,19.04819959]
[1747230934389,34.532502,178.26,178.18,19.04819959]
[1747230934968,28.922437,178.24,178.18,0.39855073]
[1747230935698,28.922437,178.19,178.18,0.39855073]
[1747230936162,34.5344242,178.19,178.18,0.39855073]
[1747230937767,28.922437,178.2,178.18,0.39855073]
[1747230937973,5.61167227,178.2,178.18,0.39855073]
[1747230938175,34.53410927,178.2,178.18,0.39855073]
[1747230938978,5.61167227,178.2,178.18,0.39855073]
[1747230939180,34.53410927,178.2,178.18,0.39855073]
[1747230939488,28.922437,178.19,178.18,0.39855073]
[1747230940405,34.53413476,178.2,178.18,0.39855073]
[1747230940573,28.922437,178.19,178.18,0.39855073]
[1747230941185,129.6668,178.21,178.18,0.39855073]
[1747230941811,5.60949486,178.27,178.18,24.66039117]
[1747230942107,135.27599086,178.28,178.2,18.64964886]
[1747230942409,135.27599086,178.28,178.21,5.61135738]
[1747230942574,129.6668,178.28,178.23,18.64964886]
[1747230943179,28.922437,178.27,178.22,26.58]
[1747230943374,164.19844859,178.28,178.22,26.58]
[1747230943599,28.922437,178.27,178.22,26.58]
[1747230944678,28.922437,178.25,178.22,26.58]
[1747230945001,28.922437,178.23,178.22,26.58]
[1747230946007,19.63424211,178.26,178.22,26.58]
[1747230946302,5.60915413,178.28,178.22,26.58]
[1747230946514,138.0,178.27,178.22,26.58]
[1747230946681,166.922437,178.27,178.22,26.58]
[1747230946881,138.0,178.27,178.22,26.58]
[1747230947809,34.53033291,178.32,178.25,18.64964886]
[1747230948014,28.922437,178.32,178.25,18.64964886]
[1747230948379,138.0,178.33,178.25,18.64964886]
[1747230948906,138.0,178.33,178.25,24.25946422]
[1747230948907,166.922437,178.33,178.25,24.25946422]
[1747230949127,138.0,178.33,178.28,26.0]
[1747230949280,138.0,178.33,178.29,18.64964886]
[1747230949474,138.0,178.33,178.3,26.52]
[1747230949677,166.922437,178.33,178.3,26.52]
[1747230949877,138.0,178.33,178.3,26.52]
[1747230952815,184.79401152,178.33,178.3,26.52]
[1747230952997,143.60762828,178.33,178.3,26.52]
[1747230953191,184.79401152,178.33,178.3,26.52]
[1747230953417,184.79401152,178.33,178.24,34.7281]
[1747230953418,41.18638324,178.31,178.24,34.7281]
[1747230953589,41.18638324,178.29,178.25,26.48]
[1747230953790,179.18638324,178.28,178.25,26.48]
[1747230953991,41.18638324,178.26,178.24,53.08]
[1747230954192,138.0,178.27,178.24,53.08]
[1747230955208,179.22616029,178.27,178.24,53.08]
[1747230955400,143.60956321,178.27,178.24,53.08]
[1747230956018,184.8357235,178.27,178.24,53.08]
[1747230956394,143.60956321,178.27,178.24,53.08]
[1747230956593,184.8357235,178.27,178.24,26.62]
[1747230957406,170.79500955,178.27,178.24,26.62]
[1747230957803,138.0,178.27,178.24,26.62]
[1747230958394,27.18544634,178.26,178.24,26.62]
[1747230958619,27.18544634,178.25,178.22,26.44]
[1747230958797,27.18544634,178.23,178.18,54.21586172]
[1747230958998,27.18544634,178.19,178.18,27.61586172]
[1747230959202,27.18544634,178.19,178.15,26.42]
[1747230959506,27.18544634,178.16,178.15,26.42]
[1747230959710,27.18544634,178.18,178.15,26.42]
[1747230959915,5.61167227,178.2,178.11,32.7699]
[1747230959916,27.18544634,178.16,178.11,32.7699]
[1747230960102,27.18544634,178.15,178.12,26.42]
[1747230960306,138.0,178.17,178.1,26.42]
[1747230960307,27.18544634,178.13,178.1,26.42]
[1747230960514,27.18544634,178.11,178.1,26.42]
[1747230960731,27.18544634,178.12,178.1,26.42]
[1747230961109,5.61293219,178.16,178.08,26.42]
[1747230961309,32.79837853,178.16,178.09,18.64964886]
[1747230961718,27.18544634,178.13,178.09,18.64964886]
[1747230961912,27.18544634,178.1,178.06,6.1665]
[1747230962128,27.18544634,178.08,178.06,26.4]
[1747230962320,27.18544634,178.1,178.06,26.4]
[1747230962528,27.18544634,178.09,178.06,26.4]
[1747230963003,27.18544634,178.07,178.02,209.98]
[1747230963202,27.18544634,178.06,178.03,26.4]
[1747230963515,41.32988435,178.05,178.02,26.4]
[1747230963722,41.32988435,178.03,178.0,26.4]
[1747230964229,31.75754071,178.09,178.01,18.64964886]
[1747230964444,41.32988435,178.11,178.01,18.64964886]
[1747230964445,5.61450788,178.11,178.01,18.64964886]
[1747230964749,41.32988435,178.07,177.99,26.0]
[1747230964908,41.32988435,178.05,178.02,26.4]
[1747230965113,5.89946155,178.09,178.02,26.4]
[1747230965427,41.32988435,178.06,178.02,26.4]
[1747230965732,41.32988435,178.03,178.02,26.4]
[1747230966431,41.32988435,178.03,177.99,26.38]
[1747230966607,41.32988435,178.01,177.98,26.62]
[1747230967215,41.32988435,178.0,177.98,26.62]
[1747230967747,5.61613475,178.06,177.98,32.23859163]
[1747230967919,46.9460191,178.06,177.98,32.23859163]
[1747230968120,5.61613475,178.06,177.98,26.62]
[1747230968313,41.32988435,177.99,177.93,18.64964886]
[1747230968540,41.32988435,177.99,177.93,45.02964886]
[1747230969023,179.32988435,177.98,177.92,1.5133]
[1747230969245,138.0,177.97,177.93,26.36]
[1747230969559,138.0,177.97,177.92,7.133726]
[1747230969718,138.0,177.97,177.94,26.36]
[1747230969922,41.32988435,177.95,177.89,6.5548]
[1747230970145,41.32988435,177.92,177.85,27.9451]
[1747230970424,26.0,177.95,177.86,26.36]
[1747230970669,41.32988435,177.92,177.86,26.36]
[1747230970845,26.0,177.95,177.85,46.59474886]
[1747230970846,41.32988435,177.91,177.85,27.9451]
[1747230971165,41.32988435,177.88,177.85,26.4]
[1747230971325,41.32988435,177.87,177.83,26.36]
[1747230971524,41.32988435,177.86,177.79,249.88321104]
[1747230971757,5.62193876,177.88,177.79,244.2589]
[1747230971758,41.32988435,177.85,177.79,244.2589]
[1747230971968,5.9062619,177.88,177.79,244.2589]
[1747230972123,0.14216157,177.9,177.8,26.36]
[1747230972322,26.0,177.91,177.81,18.64964886]
[1747230972729,28.64964886,177.96,177.81,18.64964886]
[1747230972730,164.0,177.94,177.83,18.64964886]
[1747230973173,5.62081951,177.91,177.83,5.62305907]
[1747230973334,41.32988435,177.89,177.83,5.62305907]
[1747230973528,5.90481353,177.93,177.83,5.62305907]
[1747230973733,41.32988435,177.92,177.83,5.62305907]
[1747230973936,41.32988435,177.89,177.79,217.8589]
[1747230974138,41.32988435,177.89,177.8,71.38964886]
[1747230974342,41.32988435,177.89,177.8,77.01394582]
[1747230974547,138.0,177.92,177.8,77.01394582]
[1747230974751,41.32988435,177.91,177.8,77.01394582]
[1747230974955,41.32988435,177.9,177.8,77.01394582]
[1747230975144,5.62145145,177.89,177.8,77.01394582]
[1747230975340,138.0,177.92,177.84,18.64964886]
[1747230976542,143.62067804,177.92,177.84,18.64964886]
[1747230976737,138.0,177.92,177.88,18.64964886]
[1747230977074,5.61835335,177.99,177.91,6.1705]
[1747230977240,5.61734636,178.02,177.93,18.64964886]
[1747230977438,41.32988435,178.01,177.93,18.64964886]
[1747230977668,41.32988435,177.98,177.94,26.32]
[1747230977871,41.32988435,177.97,177.94,26.32]
[1747230978196,41.32988435,177.98,177.94,26.32]
[1747230978472,41.32988435,177.99,177.94,26.32]
[1747230978642,41.32988435,177.98,177.94,26.32]
[1747230979261,41.32988435,177.97,177.94,26.32]
[1747230979568,41.32988435,177.96,177.94,26.32]
[1747230979739,41.32988435,177.97,177.94,26.32]
[1747230979940,138.0,178.0,177.94,26.32]
[1747230980169,138.0,178.0,177.95,18.64964886]
[1747230980344,138.0,178.0,177.94,31.93976255]
[1747230980345,143.61806834,178.0,177.94,26.32]
[1747230980546,138.0,178.0,177.94,31.93985813]
[1747230980873,143.6181191,178.0,177.94,26.32]
[1747230981075,143.61814,178.0,177.94,26.32]
[1747230981439,143.61814,178.0,177.95,26.3]
[1747230981677,143.61814,178.0,177.93,26.42]
[1747230981678,138.0,178.0,177.96,26.3]
[1747230983565,138.0,178.06,177.97,18.64964886]
[1747230983774,41.32988435,178.04,177.97,18.64964886]
[1747230984562,41.32988435,178.04,177.96,31.91911883]
[1747230984563,41.32988435,178.03,177.96,26.3]
[1747230984762,41.32988435,178.02,177.97,26.28]
[1747230984966,138.0,178.01,177.97,26.28]
[1747230985163,138.0,178.01,177.98,18.64964886]
[1747230985378,14.03654477,178.11,177.98,24.26796674]
[1747230985579,138.0,178.1,178.02,26.52634886]
[1747230985758,138.0,178.09,178.03,26.4]
[1747230986088,138.0,178.09,178.04,18.64964886]
[1747230986266,138.0,178.09,178.05,26.26]
[1747230987489,138.0,178.09,178.04,18.64964886]
[1747230987671,143.615222,178.09,178.05,26.26]
[1747230987982,138.0,178.09,178.05,26.26]
[1747230988359,143.61528359,178.09,178.05,26.26]
[1747230989073,143.61529674,178.09,178.05,26.26]
[1747230989380,138.0,178.09,178.07,5.61576907]
[1747230989607,138.0,178.09,178.06,18.64964886]
[1747230989608,5.61324726,178.15,178.06,24.26566774]
[1747230989905,46.9220339,178.15,178.06,24.26566774]
[1747230990203,41.30878664,178.12,178.07,26.22]
[1747230990405,19.64636541,178.15,178.07,26.22]
[1747230990406,179.30878664,178.11,178.07,26.22]
[1747230990590,138.0,178.11,178.07,26.22]
[1747230990991,143.61265292,178.17,178.08,18.64964886]
[1747230991370,143.61265292,178.17,178.08,19.04819958]
[1747230991568,143.61265292,178.17,178.09,5.61513841]
[1747230991885,41.30878664,178.16,178.1,26.22]
[1747230992085,138.0,178.15,178.1,26.61855072]
[1747230992982,41.30878664,178.14,178.1,0.39855072]
[1747230993180,41.30878664,178.14,178.11,26.2]
[1747230993583,138.0,178.15,178.08,26.4]
[1747230993584,46.92266414,178.13,178.08,26.4]
[1747230993795,46.92266414,178.13,178.09,26.2]
[1747230994499,179.30878664,178.12,178.09,26.2]
[1747230994698,138.0,178.11,178.09,26.2]
[1747230996672,143.61460223,178.11,178.08,26.4]
[1747230997004,41.30878664,178.09,178.02,34.0367]
[1747230997178,138.0,178.1,178.06,26.16]
[1747230997504,179.30878664,178.09,178.06,26.16]
[1747230997675,41.30878664,178.07,178.04,26.16]
[1747230997872,5.61608446,178.06,178.02,7.8767]
[1747230998103,143.61608446,178.06,178.03,26.16]
[1747230998395,138.0,178.06,178.03,26.16]
[1747231000403,143.61617061,178.06,178.03,26.16]
[1747231000615,138.0,178.05,178.03,26.16]
[1747231002279,41.30878664,178.07,178.02,26.12]
[1747231002280,138.0,178.04,178.02,26.12]
[1747231004386,138.0,178.04,178.03,5.61703083]
[1747231004688,138.0,178.09,178.04,18.64964886]
[1747231004885,138.0,178.09,178.06,18.64964886]
[1747231005678,138.0,178.09,178.08,18.64964886]
[1747231005996,138.0,178.09,178.07,6.2147]
[1747231006504,138.0,178.09,178.08,5.61545372]
[1747231006691,138.0,178.09,178.08,24.26510258]
[1747231007195,138.0,178.09,178.07,13.48589429]
[1747231007395,138.0,178.09,178.07,7.8702]
[1747231007600,138.0,178.09,178.08,26.08]
[1747231007800,138.0,178.09,178.04,31.61663314]
[1747231007973,138.0,178.09,178.08,26.08]
[1747231008178,138.0,178.09,178.08,44.72964886]
[1747231008408,138.0,178.09,178.08,50.34510258]
[1747231008907,138.0,178.09,178.06,18.64964886]
[1747231009219,138.0,178.09,178.07,26.08]
[1747231009508,143.61517327,178.09,178.08,26.08]
[1747231009999,138.0,178.09,178.08,26.08]
[1747231011482,138.0,178.09,178.08,50.34510258]
[1747231011693,138.0,178.16,178.09,18.64964886]
[1747231012506,138.0,178.16,178.1,5.61482313]
[1747231012707,138.0,178.16,178.11,18.64964886]
[1747231012911,46.2546082,178.21,178.11,44.80964886]
[1747231012912,138.0,178.2,178.11,44.80964886]
[1747231013085,138.0,178.2,178.14,18.64964886]
[1747231014606,138.0,178.19,178.13,6.2594]
[1747231014820,27.22282004,178.14,178.12,26.04]
[1747231014994,138.0,178.13,178.12,26.04]
[1747231015894,138.0,178.13,178.11,26.02]
[1747231016890,138.0,178.2,178.12,44.64964886]
[1747231017303,143.61177662,178.2,178.12,44.64964886]
[1747231017736,170.83459666,178.2,178.12,44.64964886]
[1747231018048,157.64095731,178.2,178.13,26.0]
[1747231018334,27.22282004,178.19,178.13,26.0]
[1747231018701,5.61261716,178.17,178.11,18.64964886]
[1747231018900,138.0,178.2,178.13,18.64964886]
[1747231019504,138.0,178.2,178.13,44.64964886]
[1747231020708,46.2546082,178.21,178.2,18.64964886]
[1747231021035,19.62675705,178.33,178.2,44.62964886]
[1747231021236,27.22282004,178.3,178.2,44.62964886]
[1747231022014,5.60883953,178.29,178.2,50.24120224]
[1747231022536,27.22282004,178.25,178.21,25.96]
[1747231022742,32.83165957,178.29,178.21,25.96]
[1747231022743,27.22282004,178.24,178.21,25.96]
[1747231023047,27.22282004,178.25,178.21,25.96]
[1747231023269,19.63093835,178.29,178.21,25.96]
[1747231023543,27.22282004,178.28,178.22,18.64964886]
[1747231023846,27.22282004,178.27,178.21,25.96]
[1747231024214,5.60978346,178.26,178.22,25.96]
[1747231024417,32.8326035,178.26,178.22,25.96]
[1747231024834,5.60978346,178.26,178.22,25.96]
[1747231025822,32.8326035,178.26,178.22,25.96]
[1747231026515,27.22282004,178.25,178.22,25.96]
[1747231026731,138.0,178.24,178.22,25.96]
[1747231027024,138.0,178.24,178.23,25.94]
[1747231027915,138.0,178.24,178.23,44.58964886]
[1747231028814,138.0,178.24,178.23,25.94]
[1747231029038,143.61044543,178.24,178.2,18.64964886]
[1747231029342,138.0,178.24,178.23,25.92]
[1747231029725,138.0,178.31,178.24,18.64964886]
[1747231029932,27.22282004,178.29,178.23,25.92]
[1747231030128,138.0,178.28,178.23,25.92]
[1747231030642,143.60915512,178.28,178.23,25.92]
[1747231030845,27.22282004,178.27,178.24,25.9]
[1747231031025,138.0,178.26,178.21,18.64964886]
[1747231031218,138.0,178.26,178.19,37.64701369]
[1747231031219,138.0,178.26,178.22,25.9]
[1747231031621,165.22282004,178.26,178.22,25.9]
[1747231031853,27.22282004,178.23,178.14,8.0728]
[1747231032064,27.22282004,178.17,178.13,25.92]
[1747231032231,27.22282004,178.16,178.13,51.82]
[1747231032424,5.61324726,178.15,178.13,51.82]
[1747231032623,5.61324726,178.15,178.1,25.88]
[1747231032624,27.22282004,178.14,178.1,25.88]
[1747231032855,5.61324726,178.15,178.1,25.88]
[1747231033032,27.22282004,178.12,178.1,25.88]
[1747231033237,27.22282004,178.13,178.1,25.88]
[1747231033424,27.22282004,178.12,178.1,25.88]
[1747231033753,27.22282004,178.13,178.1,25.88]
[1747231034273,27.22282004,178.11,178.05,6.4578]
[1747231034420,27.22282004,178.09,178.06,25.88]
[1747231034631,27.22282004,178.1,178.06,25.88]
[1747231035147,138.0,178.15,178.07,18.64964886]
[1747231035347,27.22282004,178.13,178.07,18.64964886]
[1747231035651,143.61328115,178.15,178.07,18.64964886]
[1747231035652,27.22282004,178.12,178.07,18.64964886]
[1747231035955,27.22282004,178.13,178.07,18.64964886]
[1747231036154,27.22282004,178.1,178.08,25.86]
[1747231036341,32.83795845,178.09,178.08,25.86]
[1747231036544,32.83771287,178.1,178.08,25.86]
[1747231036755,27.22282004,178.09,178.08,25.86]
[1747231036956,27.22282004,178.09,178.03,18.64964886]
[1747231037267,138.0,178.14,178.04,25.86]
[1747231037560,169.6138775,178.13,178.04,25.86]
[1747231037727,165.22282004,178.13,178.05,18.64964886]
[1747231037931,138.0,178.13,178.05,18.64964886]
[1747231038667,170.83677545,178.13,178.07,18.64964886]
[1747231039159,165.22282004,178.13,178.07,18.64964886]
[1747231039759,170.83671551,178.13,178.05,18.64964886]
[1747231040765,138.0,178.13,178.05,24.26593475]
[1747231040943,138.0,178.13,178.09,18.64964886]
[1747231041256,138.0,178.13,178.09,20.20594886]
[1747231041631,138.0,178.13,178.03,0.14216157]
[1747231041632,170.83670575,178.13,178.03,0.14216157]
[1747231041827,143.61388571,178.13,178.07,26.0]
[1747231042653,138.0,178.13,178.08,18.64964886]
[1747231042872,138.0,178.13,178.08,50.26509965]
[1747231044048,138.0,178.13,178.08,44.64964886]
[1747231044462,138.0,178.18,178.1,18.64964886]
[1747231044679,143.61268536,178.17,178.12,18.64964886]
[1747231044877,138.0,178.17,178.14,18.64964886]
[1747231045478,27.22282004,178.21,178.14,44.44964886]
[1747231045680,27.22282004,178.2,178.14,44.44964886]
[1747231046359,32.83480724,178.19,178.14,25.8]
[1747231046680,5.6119872,178.19,178.14,25.8]
[1747231047359,5.61166854,178.21,178.14,25.8]
[1747231047559,32.83448858,178.21,178.15,18.64964886]
[1747231047893,5.61112462,178.22,178.15,18.64964886]
[1747231048393,5.6119872,178.19,178.14,25.8]
[1747231048956,14.02760632,178.22,178.14,25.8]
[1747231048957,5.61170874,178.2,178.14,31.41351997]
[1747231049263,5.61170874,178.2,178.14,25.8]
[1747231049789,138.0,178.24,178.15,18.64964886]
[1747231049790,5.61072771,178.23,178.15,18.64964886]
[1747231050083,138.0,178.24,178.17,18.64964886]
[1747231050292,138.0,178.24,178.18,6.1642]
[1747231050461,138.0,178.24,178.18,12.17503667]
[1747231050788,27.22282004,178.19,178.18,0.39855073]
[1747231050954,27.50714318,178.19,178.18,0.39855073]
[1747231051156,46.15679204,178.19,178.18,0.39855073]
[1747231051386,0.28432314,178.15,178.04,25.76]
[1747231051598,27.22282004,178.11,178.04,25.76]
[1747231051876,26.0,178.16,178.04,25.76]
[1747231052083,27.22282004,178.13,178.05,18.64964886]
[1747231052477,5.61419267,178.12,178.05,18.64964886]
[1747231052998,5.61419267,178.12,178.07,18.64964886]
[1747231053900,5.61419267,178.12,178.08,1.5717]
[1747231054699,41.25609419,178.15,178.08,1.5717]
[1747231054866,14.03327415,178.15,178.08,1.5717]
[1747231055058,41.25609419,178.15,178.08,1.5717]
[1747231055286,27.22282004,178.14,178.08,1.5717]
[1747231055964,27.22282004,178.13,178.08,1.5717]
[1747231056166,27.22282004,178.12,178.08,1.5717]
[1747231056662,5.61450788,178.11,178.08,1.5717]
[1747231057289,5.61450788,178.11,178.07,25.00534886]
[1747231057491,5.61450788,178.11,178.08,25.72]
[1747231058497,5.61356236,178.14,178.08,25.72]
[1747231058679,46.87028831,178.14,178.08,25.72]
[1747231058876,27.22282004,178.13,178.08,25.72]
[1747231059278,165.22282004,178.13,178.08,25.72]
[1747231059970,138.0,178.13,178.08,25.72]
[1747231060280,165.22282004,178.13,178.08,25.72]
[1747231060683,5.61419267,178.12,178.08,25.72]
[1747231061700,143.61394821,178.13,178.09,18.64964886]
[1747231061873,138.0,178.13,178.09,18.64964886]
[1747231062269,138.0,178.13,178.1,26.0]
[1747231062477,165.22282004,178.19,178.12,26.0]
[1747231062693,138.0,178.19,178.14,18.64964886]
[1747231062870,143.61200505,178.19,178.14,18.64964886]
[1747231063414,170.83482509,178.19,178.14,18.64964886]
[1747231063973,143.61205293,178.19,178.14,18.64964886]
[1747231064406,138.0,178.19,178.14,24.26318603]
[1747231064719,170.83483907,178.19,178.14,18.64964886]
[1747231064873,170.83483907,178.19,178.13,27.2919]
[1747231064874,27.22282004,178.18,178.13,27.2919]
[1747231065069,27.22282004,178.17,178.13,1.5719]
[1747231065275,27.22282004,178.15,178.14,25.68]
[1747231065505,27.22282004,178.15,178.13,25.66]
[1747231065977,165.22282004,178.14,178.13,25.66]
[1747231066474,138.0,178.14,178.13,25.66]
[1747231069016,138.0,178.14,178.08,27.5261]
[1747231069017,138.0,178.13,178.03,231.91424028]
[1747231069306,138.0,178.13,178.07,18.64964886]
[1747231069513,165.22282004,178.13,178.08,25.64]
[1747231070388,27.22282004,178.12,178.08,25.64]
[1747231071106,5.61419267,178.12,178.08,25.64]
[1747231072620,143.61393942,178.13,178.08,25.64]
[1747231073803,138.0,178.13,178.09,18.64964886]
[1747231074004,143.61392288,178.13,178.09,18.64964886]
[1747231075315,138.0,178.13,178.09,18.64964886]
[1747231075498,138.0,178.13,178.09,24.26476624]
[1747231075694,138.0,178.18,178.09,50.26476624]
[1747231075910,138.0,178.18,178.11,18.64964886]
[1747231076096,138.0,178.18,178.11,44.36964886]
[1747231077438,138.0,178.18,178.13,18.64964886]
[1747231079105,27.22282004,178.17,178.13,18.64964886]
[1747231079316,32.83575223,178.16,178.13,25.56]
[1747231080194,32.83575223,178.16,178.1,7.6078]
[1747231080195,27.22282004,178.14,178.1,7.6078]
[1747231080396,27.22282004,178.14,178.11,25.56]
[1747231080597,27.22282004,178.12,178.09,25.72]
[1747231080904,27.22282004,178.13,178.1,25.56]
[1747231081306,32.8369845,178.13,178.1,25.56]
[1747231081700,5.61416446,178.13,178.1,25.56]
[1747231081923,32.8369845,178.13,178.1,25.56]
[1747231082111,27.22282004,178.12,178.09,25.72]
[1747231082313,27.22282004,178.12,178.1,25.54]
[1747231082821,5.61416446,178.13,178.1,25.54]
[1747231083017,27.22282004,178.11,178.1,25.54]
[1747231083202,27.22282004,178.12,178.1,25.54]
[1747231083713,27.22282004,178.12,178.09,51.26]
[1747231084343,27.22282004,178.14,178.09,56.87508155]
[1747231084524,138.0,178.15,178.1,18.64964886]
[1747231085397,138.0,178.15,178.1,24.26444913]
[1747231085602,32.83417742,178.21,178.13,18.64964886]
[1747231085914,138.0,178.2,178.13,18.64964886]
[1747231086428,138.0,178.2,178.14,6.2714]
[1747231086623,138.0,178.2,178.15,18.64964886]
[1747231086925,138.0,178.2,178.17,18.64964886]
[1747231087130,138.0,178.2,178.18,25.5]
[1747231087728,170.83451398,178.2,178.16,1.5729]
[1747231087910,143.61169394,178.2,178.17,25.5]
[1747231088099,27.22282004,178.18,178.17,25.5]
[1747231088923,138.0,178.17,178.12,1.5525]
[1747231089105,46.86369467,178.2,178.13,25.5]
[1747231089106,27.22282004,178.14,178.13,25.5]
[1747231089301,165.22282004,178.16,178.13,25.5]
[1747231089505,138.0,178.16,178.13,25.5]
[1747231089732,170.83579911,178.16,178.13,25.5]
[1747231089913,138.0,178.16,178.14,18.64964886]
[1747231090417,170.8357576,178.16,178.13,25.5]
[1747231090615,138.0,178.16,178.14,18.64964886]
[1747231091829,138.0,178.2,178.14,50.26317183]
[1747231092408,27.22282004,178.24,178.18,18.64964886]
[1747231092603,165.22282004,178.26,178.18,44.14964886]
[1747231092909,165.22282004,178.26,178.19,6.0581]
[1747231093103,27.22282004,178.25,178.19,6.0581]
[1747231093509,27.22282004,178.25,178.21,18.64964886]
[1747231093723,27.22282004,178.25,178.22,25.46]
[1747231093920,27.22282004,178.24,178.22,25.46]
[1747231094415,143.60987677,178.26,178.22,25.46]
[1747231094613,27.22282004,178.25,178.22,25.46]
[1747231095221,27.22282004,178.23,178.14,0.14216157]
[1747231095427,27.22282004,178.2,178.16,18.64964886]
[1747231095626,32.83480724,178.19,178.15,31.8803]
[1747231095817,27.22282004,178.18,178.15,25.44]
[1747231096529,5.6119872,178.19,178.15,25.44]
[1747231097036,32.83480724,178.19,178.15,25.44]
[1747231097336,27.22282004,178.19,178.15,25.44]
[1747231097518,32.8348747,178.19,178.15,25.44]
[1747231097914,27.22282004,178.17,178.14,25.5]
[1747231098118,27.22282004,178.15,178.11,6.4137]
[1747231098384,27.22282004,178.13,178.11,25.42]
[1747231098545,138.0,178.14,178.11,25.42]
[1747231098715,5.61175653,178.2,178.12,18.64964886]
[1747231098914,165.22282004,178.19,178.12,18.64964886]
[1747231099137,165.22282004,178.19,178.12,44.64964886]
[1747231099840,138.0,178.19,178.14,18.64964886]
[1747231101042,138.0,178.19,178.15,57.4824]
[1747231101827,138.0,178.19,178.17,18.64964886]
[1747231102037,138.0,178.19,178.16,5.61293219]
[1747231102038,165.22282004,178.26,178.21,18.64964886]
[1747231102343,138.0,178.26,178.22,25.38]
[1747231102545,138.0,178.26,178.23,70.12964886]
[1747231102751,27.22282004,178.28,178.23,70.12964886]
[1747231103120,27.22282004,178.29,178.23,70.12964886]
[1747231103320,138.0,178.31,178.23,70.12964886]
[1747231103321,138.0,178.31,178.25,18.64964886]
[1747231103722,138.0,178.31,178.27,18.64964886]
[1747231106724,138.0,178.35,178.27,24.25897328]
[1747231107545,138.0,178.35,178.31,18.64964886]
[1747231107751,138.0,178.35,178.33,18.64964886]
[1747231108417,138.0,178.41,178.33,56.75448377]
[1747231108644,138.0,178.41,178.36,26.0]
[1747231108853,138.0,178.41,178.37,18.64964886]
[1747231109020,138.0,178.41,178.36,26.0]
[1747231109229,165.22282004,178.41,178.36,26.0]
[1747231109651,170.82798806,178.41,178.36,26.0]
[1747231109847,27.22282004,178.39,178.34,1.5539]
[1747231110049,157.61783547,178.41,178.35,25.32]
[1747231110250,138.0,178.38,178.35,25.32]